Workbook

Sheet By_Beads
A1: This spreadsheet is designed to provide correct tapering for the reduction of Cymbalta following the guidelines
A2: recommended by the Facebook Group 'Cymbalta Hurts Worse'. To use this spreadsheet effectively please
A3: fill in the coloured spaces below. The number of beads Removed, Beads Consumed, Mg Removed, Mg Consumed
A4: will all update automatically. Then simply follow the correct column, reducing each week until you reach zero.
A5: You can ignore the weeks following zero.
A7: Please note the values currently in the cells are for example only. Your values will most likely be different.
A9: Note that you can fill in either the average measured mg weight from 3 capsules if using the scale method
A10: or the average number of beads from 3 capsules if using the bead method: you do not have to enter both.
A12: Then enter the desired taper rate. Note that the maximum recommended rate is 10%.
A14: Either average number of beads from 3 capsules: | D14: 500
A16: Desired taper reduction rate: | D16: 2.5
A19: Week Number | B19: Beads Removed | C19: Beads Consumed
A20: 1 | B20: =ROUND(D14*D16/100,0) -> 13 | C20: =D14-B20 -> 487
A21: 2 | B21: =IF(C20*D$16/100<=0,0,IF(C20*D$16/100<1,1,ROUND(C20*D$16/100,0))) -> 12 | C21: =C20-B21 -> 475
A22: 3 | B22: =IF(C21*D$16/100<=0,0,IF(C21*D$16/100<1,1,ROUND(C21*D$16/100,0))) -> 12 | C22: =C21-B22 -> 463
A23: 4 | B23: 12 | C23: =C22-B23 -> 451
A24: 5 | B24: 11 | C24: 440
A25: 6 | B25: 11 | C25: 429
A26: 7 | B26: 11 | C26: 418
A27: 8 | B27: 10 | C27: 408
A28: 9 | B28: 10 | C28: 398
A29: 10 | B29: 10 | C29: 388
A30: 11 | B30: 10 | C30: 378
A31: 12 | B31: 9 | C31: 369
A32: 13 | B32: 9 | C32: 360
A33: 14 | B33: 9 | C33: 351
A34: 15 | B34: 9 | C34: 342
A35: 16 | B35: 9 | C35: 333
A36: 17 | B36: 8 | C36: 325
A37: 18 | B37: 8 | C37: 317
A38: 19 | B38: 8 | C38: 309
A39: 20 | B39: 8 | C39: 301
A40: 21 | B40: 8 | C40: 293
A41: 22 | B41: 7 | C41: 286
A42: 23 | B42: 7 | C42: 279
A43: 24 | B43: 7 | C43: 272
A44: 25 | B44: 7 | C44: 265
A45: 26 | B45: 7 | C45: 258
A46: 27 | B46: 6 | C46: 252
A47: 28 | B47: 6 | C47: 246
A48: 29 | B48: 6 | C48: 240
A49: 30 | B49: 6 | C49: 234
A50: 31 | B50: 6 | C50: 228
A51: 32 | B51: 6 | C51: 222
A52: 33 | B52: 6 | C52: 216
A53: 34 | B53: 5 | C53: 211
A54: 35 | B54: 5 | C54: 206
A55: 36 | B55: 5 | C55: 201
A56: 37 | B56: 5 | C56: 196
A57: 38 | B57: 5 | C57: 191
A58: 39 | B58: 5 | C58: 186
A59: 40 | B59: 5 | C59: 181
A60: 41 | B60: 5 | C60: 176
A61: 42 | B61: 4 | C61: 172
A62: 43 | B62: 4 | C62: 168
A63: 44 | B63: 4 | C63: 164
A64: 45 | B64: 4 | C64: 160
A65: 46 | B65: 4 | C65: 156
A66: 47 | B66: 4 | C66: 152
A67: 48 | B67: 4 | C67: 148
A68: 49 | B68: 4 | C68: 144
A69: 50 | B69: 4 | C69: 140
A70: 51 | B70: 4 | C70: 136
A71: 52 | B71: 3 | C71: 133
A72: 53 | B72: 3 | C72: 130
A73: 54 | B73: 3 | C73: 127
A74: 55 | B74: 3 | C74: 124
A75: 56 | B75: 3 | C75: 121
A76: 57 | B76: 3 | C76: 118
A77: 58 | B77: 3 | C77: 115
A78: 59 | B78: 3 | C78: 112
A79: 60 | B79: 3 | C79: 109
A80: 61 | B80: 3 | C80: 106
A81: 62 | B81: 3 | C81: 103
A82: 63 | B82: 3 | C82: 100
A83: 64 | B83: 3 | C83: 97
A84: 65 | B84: 2 | C84: 95
A85: 66 | B85: 2 | C85: 93
A86: 67 | B86: =IF(C85*D$16/100<=0,0,IF(C85*D$16/100<1,1,ROUND(C85*D$16/100,0))) -> 2 | C86: 91
A87: 68 | B87: 2 | C87: =C86-B87 -> 89
A88: 69 | B88: 2 | C88: 87
A89: 70 | B89: 2 | C89: 85
A90: 71 | B90: 2 | C90: 83
A91: 72 | B91: 2 | C91: 81
A92: 73 | B92: 2 | C92: 79
A93: 74 | B93: 2 | C93: 77
A94: 75 | B94: 2 | C94: 75
A95: 76 | B95: 2 | C95: 73
A96: 77 | B96: 2 | C96: 71
A97: 78 | B97: 2 | C97: 69
A98: 79 | B98: 2 | C98: 67
A99: 80 | B99: 2 | C99: 65
A100: 81 | B100: 2 | C100: 63
A101: 82 | B101: 2 | C101: 61
A102: 83 | B102: 2 | C102: 59
A103: 84 | B103: 1 | C103: 58
A104: 85 | B104: 1 | C104: 57
A105: 86 | B105: 1 | C105: 56
A106: 87 | B106: 1 | C106: 55
A107: 88 | B107: 1 | C107: 54
A108: 89 | B108: 1 | C108: 53
A109: 90 | B109: 1 | C109: 52
A110: 91 | B110: 1 | C110: 51
A111: 92 | B111: 1 | C111: 50
A112: 93 | B112: 1 | C112: 49
A113: 94 | B113: 1 | C113: 48
A114: 95 | B114: 1 | C114: 47
A115: 96 | B115: 1 | C115: 46
A116: 97 | B116: 1 | C116: 45
A117: 98 | B117: 1 | C117: 44
A118: 99 | B118: 1 | C118: 43
A119: 100 | B119: 1 | C119: 42
A120: 101 | B120: 1 | C120: 41
A121: 102 | B121: 1 | C121: 40
A122: 103 | B122: 1 | C122: 39
A123: 104 | B123: 1 | C123: 38
A124: 105 | B124: 1 | C124: 37
A125: 106 | B125: 1 | C125: 36
A126: 107 | B126: 1 | C126: 35
A127: 108 | B127: 1 | C127: 34
A128: 109 | B128: 1 | C128: 33
A129: 110 | B129: 1 | C129: 32
A130: 111 | B130: 1 | C130: 31
A131: 112 | B131: 1 | C131: 30
A132: 113 | B132: 1 | C132: 29
A133: 114 | B133: 1 | C133: 28
A134: 115 | B134: 1 | C134: 27
A135: 116 | B135: 1 | C135: 26
A136: 117 | B136: 1 | C136: 25
A137: 118 | B137: 1 | C137: 24
A138: 119 | B138: 1 | C138: 23
A139: 120 | B139: 1 | C139: 22
A140: 121 | B140: 1 | C140: 21
A141: 122 | B141: 1 | C141: 20
A142: 123 | B142: 1 | C142: 19
A143: 124 | B143: 1 | C143: 18
A144: 125 | B144: 1 | C144: 17
A145: 126 | B145: 1 | C145: 16
A146: 127 | B146: 1 | C146: 15
A147: 128 | B147: 1 | C147: 14
A148: 129 | B148: 1 | C148: 13
A149: 130 | B149: 1 | C149: 12
A150: 131 | B150: =IF(C149*D$16/100<=0,0,IF(C149*D$16/100<1,1,ROUND(C149*D$16/100,0))) -> 1 | C150: 11
A151: 132 | B151: 1 | C151: =C150-B151 -> 10
A152: 133 | B152: 1 | C152: 9
A153: 134 | B153: 1 | C153: 8
A154: 135 | B154: 1 | C154: 7
A155: 136 | B155: 1 | C155: 6
A156: 137 | B156: 1 | C156: 5
A157: 138 | B157: 1 | C157: 4
A158: 139 | B158: 1 | C158: 3
A159: 140 | B159: 1 | C159: 2
A160: 141 | B160: 1 | C160: 1
A161: 142 | B161: 1 | C161: 0
A162: 143 | B162: 0 | C162: 0
A163: 144 | B163: 0 | C163: 0
A164: 145 | B164: 0 | C164: 0
A165: 146 | B165: 0 | C165: 0
A166: 147 | B166: 0 | C166: 0
A167: 148 | B167: 0 | C167: 0
A168: 149 | B168: 0 | C168: 0
A169: 150 | B169: 0 | C169: 0
A170: 151 | B170: 0 | C170: 0
A171: 152 | B171: 0 | C171: 0
A172: 153 | B172: 0 | C172: 0
A173: 154 | B173: 0 | C173: 0
A174: 155 | B174: 0 | C174: 0
A175: 156 | B175: 0 | C175: 0
A176: 157 | B176: 0 | C176: 0
A177: 158 | B177: 0 | C177: 0
A178: 159 | B178: 0 | C178: 0
A179: 160 | B179: 0 | C179: 0
A180: 161 | B180: 0 | C180: 0
A181: 162 | B181: 0 | C181: 0
A182: 163 | B182: 0 | C182: 0
A183: 164 | B183: 0 | C183: 0
A184: 165 | B184: 0 | C184: 0
A185: 166 | B185: 0 | C185: 0
A186: 167 | B186: 0 | C186: 0
A187: 168 | B187: 0 | C187: 0
A188: 169 | B188: 0 | C188: 0
A189: 170 | B189: 0 | C189: 0
A190: 171 | B190: 0 | C190: 0
A191: 172 | B191: 0 | C191: 0
A192: 173 | B192: 0 | C192: 0
A193: 174 | B193: 0 | C193: 0
A194: 175 | B194: 0 | C194: 0
A195: 176 | B195: 0 | C195: 0
A196: 177 | B196: 0 | C196: 0
A197: 178 | B197: 0 | C197: 0
A198: 179 | B198: 0 | C198: 0
A199: 180 | B199: 0 | C199: 0
A200: 181 | B200: 0 | C200: 0
A201: 182 | B201: 0 | C201: 0
A202: 183 | B202: 0 | C202: 0
A203: 184 | B203: 0 | C203: 0
A204: 185 | B204: 0 | C204: 0
A205: 186 | B205: 0 | C205: 0
A206: 187 | B206: 0 | C206: 0
A207: 188 | B207: 0 | C207: 0
... 41 more rows

Sheet By_Weight
A1: This spreadsheet is designed to provide correct tapering for the reduction of Cymbalta following the guidelines
A2: recommended by the Facebook Group 'Cymbalta Hurts Worse'. To use this spreadsheet effectively please
A3: fill in the coloured spaces below. The number of beads Removed, Beads Consumed, Mg Removed, Mg Consumed
A4: will all update automatically. Then simply follow the correct column, reducing each week until you reach zero.
A5: You can ignore the weeks following zero.
A7: Please note the values currently in the cells are for example only. Your values will most likely be different.
A9: Note that you can fill in either the average measured mg weight from 3 capsules if using the scale method
A10: or the average number of beads from 3 capsules if using the bead method: you do not have to enter both.
A12: Then enter the desired taper rate. Note that the maximum recommended rate is 10%.
A14: Average measured weight from 3 capsules: | D14: 300
A16: Desired taper reduction rate: | D16: 2.5
A19: Week Number | B19: Mg Removed | C19: Mg Consumed
A20: 1 | B20: =D14*D16/100 -> 7.5 | C20: =D14-B20 -> 292.5
A21: 2 | B21: =IF(C20*D$16/100<=0,0,IF(C20*D$16/100<0.025,0.025,C20*D$16/100)) -> 7.3125 | C21: =IF(C20-B21<=0,0,C20-B21) -> 285.1875
A22: 3 | B22: =IF(C21*D$16/100<=0,0,IF(C21*D$16/100<0.025,0.025,C21*D$16/100)) -> 7.1296875 | C22: 278.0578125
A23: 4 | B23: 6.951445312 | C23: 271.1063672
A24: 5 | B24: 6.77765918 | C24: 264.328708
A25: 6 | B25: 6.6082177 | C25: 257.7204903
A26: 7 | B26: 6.443012258 | C26: 251.277478
A27: 8 | B27: 6.281936951 | C27: 244.9955411
A28: 9 | B28: 6.124888527 | C28: 238.8706526
A29: 10 | B29: 5.971766314 | C29: 232.8988863
A30: 11 | B30: 5.822472156 | C30: 227.0764141
A31: 12 | B31: 5.676910353 | C31: 221.3995037
A32: 13 | B32: 5.534987594 | C32: 215.8645162
A33: 14 | B33: 5.396612904 | C33: 210.4679033
A34: 15 | B34: 5.261697581 | C34: 205.2062057
A35: 16 | B35: 5.130155142 | C35: 200.0760505
A36: 17 | B36: 5.001901263 | C36: 195.0741493
A37: 18 | B37: 4.876853732 | C37: 190.1972955
A38: 19 | B38: 4.754932388 | C38: 185.4423631
A39: 20 | B39: 4.636059079 | C39: 180.8063041
A40: 21 | B40: 4.520157602 | C40: 176.2861465
A41: 22 | B41: 4.407153662 | C41: 171.8789928
A42: 23 | B42: 4.29697482 | C42: 167.582018
A43: 24 | B43: 4.18955045 | C43: 163.3924675
A44: 25 | B44: 4.084811688 | C44: 159.3076558
A45: 26 | B45: 3.982691396 | C45: 155.3249644
A46: 27 | B46: 3.883124111 | C46: 151.4418403
A47: 28 | B47: 3.786046008 | C47: 147.6557943
A48: 29 | B48: 3.691394858 | C48: 143.9643995
A49: 30 | B49: 3.599109987 | C49: 140.3652895
A50: 31 | B50: 3.509132237 | C50: 136.8561572
A51: 32 | B51: 3.421403931 | C51: 133.4347533
A52: 33 | B52: 3.335868833 | C52: 130.0988845
A53: 34 | B53: 3.252472112 | C53: 126.8464124
A54: 35 | B54: 3.171160309 | C54: 123.6752521
A55: 36 | B55: 3.091881302 | C55: 120.5833708
A56: 37 | B56: 3.014584269 | C56: 117.5687865
A57: 38 | B57: 2.939219662 | C57: 114.6295668
A58: 39 | B58: 2.865739171 | C58: 111.7638277
A59: 40 | B59: 2.794095691 | C59: 108.969732
A60: 41 | B60: 2.724243299 | C60: 106.2454887
A61: 42 | B61: 2.656137217 | C61: 103.5893515
A62: 43 | B62: 2.589733786 | C62: 100.9996177
A63: 44 | B63: 2.524990442 | C63: 98.47462722
A64: 45 | B64: 2.461865681 | C64: 96.01276154
A65: 46 | B65: 2.400319039 | C65: 93.6124425
A66: 47 | B66: 2.340311063 | C66: 91.27213144
A67: 48 | B67: 2.281803286 | C67: 88.99032815
A68: 49 | B68: 2.224758204 | C68: 86.76556995
A69: 50 | B69: 2.169139249 | C69: 84.5964307
A70: 51 | B70: 2.114910768 | C70: 82.48151993
A71: 52 | B71: 2.062037998 | C71: 80.41948194
A72: 53 | B72: 2.010487048 | C72: 78.40899489
A73: 54 | B73: 1.960224872 | C73: 76.44877002
A74: 55 | B74: 1.91121925 | C74: 74.53755077
A75: 56 | B75: 1.863438769 | C75: 72.674112
A76: 57 | B76: 1.8168528 | C76: 70.8572592
A77: 58 | B77: 1.77143148 | C77: 69.08582772
A78: 59 | B78: 1.727145693 | C78: 67.35868202
A79: 60 | B79: 1.683967051 | C79: 65.67471497
A80: 61 | B80: 1.641867874 | C80: 64.0328471
A81: 62 | B81: 1.600821177 | C81: 62.43202592
A82: 63 | B82: 1.560800648 | C82: 60.87122527
A83: 64 | B83: 1.521780632 | C83: 59.34944464
A84: 65 | B84: 1.483736116 | C84: 57.86570853
A85: 66 | B85: 1.446642713 | C85: =IF(C84-B85<=0,0,C84-B85) -> 56.41906581
A86: 67 | B86: =IF(C85*D$16/100<=0,0,IF(C85*D$16/100<0.025,0.025,C85*D$16/100)) -> 1.410476645 | C86: 55.00858917
A87: 68 | B87: 1.375214729 | C87: 53.63337444
A88: 69 | B88: 1.340834361 | C88: 52.29254008
A89: 70 | B89: 1.307313502 | C89: 50.98522657
A90: 71 | B90: 1.274630664 | C90: 49.71059591
A91: 72 | B91: 1.242764898 | C91: 48.46783101
A92: 73 | B92: 1.211695775 | C92: 47.25613524
A93: 74 | B93: 1.181403381 | C93: 46.07473186
A94: 75 | B94: 1.151868296 | C94: 44.92286356
A95: 76 | B95: 1.123071589 | C95: 43.79979197
A96: 77 | B96: 1.094994799 | C96: 42.70479717
A97: 78 | B97: 1.067619929 | C97: 41.63717724
A98: 79 | B98: 1.040929431 | C98: 40.59624781
A99: 80 | B99: 1.014906195 | C99: 39.58134162
A100: 81 | B100: 0.9895335404 | C100: 38.59180808
A101: 82 | B101: 0.9647952019 | C101: 37.62701287
A102: 83 | B102: 0.9406753218 | C102: 36.68633755
A103: 84 | B103: 0.9171584388 | C103: 35.76917911
A104: 85 | B104: 0.8942294778 | C104: 34.87494964
A105: 86 | B105: 0.8718737409 | C105: 34.00307589
A106: 87 | B106: 0.8500768974 | C106: 33.152999
A107: 88 | B107: 0.8288249749 | C107: 32.32417402
A108: 89 | B108: 0.8081043506 | C108: 31.51606967
A109: 90 | B109: 0.7879017418 | C109: 30.72816793
A110: 91 | B110: 0.7682041982 | C110: 29.95996373
A111: 92 | B111: 0.7489990933 | C111: 29.21096464
A112: 93 | B112: 0.730274116 | C112: 28.48069052
A113: 94 | B113: 0.7120172631 | C113: 27.76867326
A114: 95 | B114: 0.6942168315 | C114: 27.07445643
A115: 96 | B115: 0.6768614107 | C115: 26.39759502
A116: 97 | B116: 0.6599398754 | C116: 25.73765514
A117: 98 | B117: 0.6434413785 | C117: 25.09421376
A118: 99 | B118: 0.6273553441 | C118: 24.46685842
A119: 100 | B119: 0.6116714605 | C119: 23.85518696
A120: 101 | B120: 0.596379674 | C120: 23.25880728
A121: 102 | B121: 0.5814701821 | C121: 22.6773371
A122: 103 | B122: 0.5669334276 | C122: 22.11040367
A123: 104 | B123: 0.5527600919 | C123: 21.55764358
A124: 105 | B124: 0.5389410896 | C124: 21.01870249
A125: 106 | B125: 0.5254675623 | C125: 20.49323493
A126: 107 | B126: 0.5123308733 | C126: 19.98090406
A127: 108 | B127: 0.4995226014 | C127: 19.48138146
A128: 109 | B128: 0.4870345364 | C128: 18.99434692
A129: 110 | B129: 0.474858673 | C129: 18.51948825
A130: 111 | B130: 0.4629872062 | C130: 18.05650104
A131: 112 | B131: 0.451412526 | C131: 17.60508851
A132: 113 | B132: 0.4401272129 | C132: 17.1649613
A133: 114 | B133: 0.4291240325 | C133: 16.73583727
A134: 115 | B134: 0.4183959317 | C134: 16.31744134
A135: 116 | B135: 0.4079360334 | C135: 15.9095053
A136: 117 | B136: 0.3977376326 | C136: 15.51176767
A137: 118 | B137: 0.3877941918 | C137: 15.12397348
A138: 119 | B138: 0.378099337 | C138: 14.74587414
A139: 120 | B139: 0.3686468536 | C139: 14.37722729
A140: 121 | B140: 0.3594306822 | C140: 14.01779661
A141: 122 | B141: 0.3504449152 | C141: 13.66735169
A142: 123 | B142: 0.3416837923 | C142: 13.3256679
A143: 124 | B143: 0.3331416975 | C143: 12.9925262
A144: 125 | B144: 0.3248131551 | C144: 12.66771305
A145: 126 | B145: 0.3166928262 | C145: 12.35102022
A146: 127 | B146: 0.3087755055 | C146: 12.04224472
A147: 128 | B147: 0.3010561179 | C147: 11.7411886
A148: 129 | B148: 0.2935297149 | C148: 11.44765888
A149: 130 | B149: 0.2861914721 | C149: =IF(C148-B149<=0,0,C148-B149) -> 11.16146741
A150: 131 | B150: =IF(C149*D$16/100<=0,0,IF(C149*D$16/100<0.025,0.025,C149*D$16/100)) -> 0.2790366853 | C150: 10.88243073
A151: 132 | B151: 0.2720607681 | C151: 10.61036996
A152: 133 | B152: 0.2652592489 | C152: 10.34511071
A153: 134 | B153: 0.2586277677 | C153: 10.08648294
A154: 135 | B154: 0.2521620735 | C154: 9.834320867
A155: 136 | B155: 0.2458580217 | C155: 9.588462845
A156: 137 | B156: 0.2397115711 | C156: 9.348751274
A157: 138 | B157: 0.2337187819 | C157: 9.115032492
A158: 139 | B158: 0.2278758123 | C158: 8.88715668
A159: 140 | B159: 0.222178917 | C159: 8.664977763
A160: 141 | B160: 0.2166244441 | C160: 8.448353319
A161: 142 | B161: 0.211208833 | C161: 8.237144486
A162: 143 | B162: 0.2059286121 | C162: 8.031215874
A163: 144 | B163: 0.2007803968 | C163: 7.830435477
A164: 145 | B164: 0.1957608869 | C164: 7.63467459
A165: 146 | B165: 0.1908668647 | C165: 7.443807725
A166: 147 | B166: 0.1860951931 | C166: 7.257712532
A167: 148 | B167: 0.1814428133 | C167: 7.076269719
A168: 149 | B168: 0.176906743 | C168: 6.899362976
A169: 150 | B169: 0.1724840744 | C169: 6.726878901
A170: 151 | B170: 0.1681719725 | C170: 6.558706929
A171: 152 | B171: 0.1639676732 | C171: 6.394739256
A172: 153 | B172: 0.1598684814 | C172: 6.234870774
A173: 154 | B173: 0.1558717694 | C173: 6.078999005
A174: 155 | B174: 0.1519749751 | C174: 5.92702403
A175: 156 | B175: 0.1481756007 | C175: 5.778848429
A176: 157 | B176: 0.1444712107 | C176: 5.634377218
A177: 158 | B177: 0.1408594305 | C177: 5.493517788
A178: 159 | B178: 0.1373379447 | C178: 5.356179843
A179: 160 | B179: 0.1339044961 | C179: 5.222275347
A180: 161 | B180: 0.1305568837 | C180: 5.091718463
A181: 162 | B181: 0.1272929616 | C181: 4.964425502
A182: 163 | B182: 0.1241106375 | C182: 4.840314864
A183: 164 | B183: 0.1210078716 | C183: 4.719306993
A184: 165 | B184: 0.1179826748 | C184: 4.601324318
A185: 166 | B185: 0.1150331079 | C185: 4.48629121
A186: 167 | B186: 0.1121572802 | C186: 4.37413393
A187: 168 | B187: 0.1093533482 | C187: 4.264780581
A188: 169 | B188: 0.1066195145 | C188: 4.158161067
A189: 170 | B189: 0.1039540267 | C189: 4.05420704
A190: 171 | B190: 0.101355176 | C190: 3.952851864
A191: 172 | B191: 0.09882129661 | C191: 3.854030568
A192: 173 | B192: 0.09635076419 | C192: 3.757679803
A193: 174 | B193: 0.09394199509 | C193: 3.663737808
A194: 175 | B194: 0.09159344521 | C194: 3.572144363
A195: 176 | B195: 0.08930360908 | C195: 3.482840754
A196: 177 | B196: 0.08707101885 | C196: 3.395769735
A197: 178 | B197: 0.08489424338 | C197: 3.310875492
A198: 179 | B198: 0.0827718873 | C198: 3.228103605
A199: 180 | B199: 0.08070259011 | C199: 3.147401014
A200: 181 | B200: 0.07868502536 | C200: 3.068715989
A201: 182 | B201: 0.07671789973 | C201: 2.991998089
A202: 183 | B202: 0.07479995223 | C202: 2.917198137
A203: 184 | B203: 0.07292995343 | C203: 2.844268184
A204: 185 | B204: 0.07110670459 | C204: 2.773161479
A205: 186 | B205: 0.06932903698 | C205: 2.703832442
A206: 187 | B206: 0.06759581105 | C206: 2.636236631
A207: 188 | B207: 0.06590591578 | C207: 2.570330715
... 87 more rows
